[Event "Chigorin Memorial 2019"]
[Site "Saint Petersburg"]
[Date "2019.10.06"]
[Round "2.3"]
[White "Salman, Pavel"]
[Black "Khalifman, Alexander"]
[Result "1/2-1/2"]
[ECO "E07"]
[WhiteElo "2282"]
[BlackElo "2614"]
[Annotator "ChessBase"]
[PlyCount "25"]
[EventDate "2019.10.05"]
[EventType "swiss"]
[EventCountry "RUS"]
[SourceTitle "playchess.com"]
[Source "ChessBase"]
[SourceQuality "1"]
[TimeControl "5400+30"]

1. d4 {[%emt 0:00:00]} Nf6 {[%emt 0:00:00]} 2. c4 {[%emt 0:00:00]} e6 {[%emt 0:00:00]} 3. Nf3 {[%emt 0:00:52]} d5 {[%emt 0:00:00]} 4. g3 {[%emt 0:00:36]} Bb4+ {[%emt 0:00:00]} 5. Bd2 {[%emt 0:00:20]} Be7 {[%emt 0:00:03]} 6. Bg2 {[%emt 0:01:11]} O-O {[%emt 0:00:08]} 7. O-O {[%emt 0:02:35]} c6 {[%emt 0:00:05]} 8. Qb3 {[%emt 0:01:02]} Nbd7 {[%emt 0:00:18]} 9. Bf4 {[%emt 0:03:08]} Nh5 {[%emt 0:00:08]} 10. Bc1 {[%emt 0:02:07]} Nhf6 {[%emt 0:00:08]} 11. Bf4 {[%emt 0:01:13]} Nh5 {[%emt 0:00:15]} 12. Bc1 {[%emt 0:01:48]} Nhf6 {[%emt 0:00:07]} 13. Qd1 {[%emt 1:21:38]} 1/2-1/2

[Event "Chigorin Memorial 2019"]
[Site "Saint Petersburg"]
[Date "2019.10.06"]
[Round "2.9"]
[White "Gareyev, Timur"]
[Black "Saidov, Bilukhadzh"]
[Result "1/2-1/2"]
[ECO "D45"]
[WhiteElo "2591"]
[BlackElo "2260"]
[Annotator "ChessBase"]
[PlyCount "72"]
[EventDate "2019.10.05"]
[EventType "swiss"]
[EventCountry "RUS"]
[SourceTitle "playchess.com"]
[Source "ChessBase"]
[SourceQuality "1"]
[TimeControl "5400+30"]

1. c4 {[%emt 0:06:30]} c6 {[%emt 0:00:00]} 2. Nf3 {[%emt 0:00:12]} d5 {[%emt 0:00:05]} 3. e3 {[%emt 0:00:42]} Nf6 {[%emt 0:02:24]} 4. Nc3 {[%emt 0:00:26]} e6 {[%emt 0:03:41]} 5. b3 {[%emt 0:00:10]} Bd6 {[%emt 0:00:28]} 6. Bb2 {[%emt 0:01:31]} O-O {[%emt 0:02:49]} 7. d4 {[%emt 0:01:55]} Nbd7 {[%emt 0:01:33]} 8. Be2 {[%emt 0:00:06]} Qe7 {[%emt 0:01:26]} 9. O-O {[%emt 0:01:01]} b6 {[%emt 0:01:10]} 10. Qc2 {[%emt 0:03:43]} Bb7 {[%emt 0:00:19]} 11. e4 {[%emt 0:00:54]} dxe4 {[%emt 0:04:08]} 12. Nxe4 {[%emt 0:05:32]} Nxe4 {[%emt 0:00:14]} 13. Qxe4 {[%emt 0:00:11]} Nf6 {[%emt 0:00:10]} 14. Qh4 {[%emt 0:00:13]} Ba3 {[%emt 0:01:10]} 15. Bxa3 {[%emt 0:03:29]} Qxa3 {[%emt 0:00:03]} 16. Rfd1 {[%emt 0:01:11]} Rad8 {[%emt 0:00:35]} 17. Ne5 {[%emt 0:08:16]} c5 {[%emt 0:01:30]} 18. Bf3 {[%emt 0:12:55]} Bxf3 {[%emt 0:02:20]} 19. gxf3 {[%emt 0:02:43]} cxd4 {[%emt 0:06:21]} 20. Rxd4 {[%emt 0:00:33]} Qc5 {[%emt 0:02:13]} 21. Rad1 {[%emt 0:01:08]} Rxd4 {[%emt 0:03:28]} 22. Qxd4 {[%emt 0:00:04]} Qxd4 {[%emt 0:01:25]} 23. Rxd4 {[%emt 0:00:03]} Rc8 {[%emt 0:00:07]} 24. Nc6 {[%emt 0:00:54]} Ra8 {[%emt 0:00:03]} 25. Nxa7 {[%emt 0:06:49]} g5 {[%emt 0:00:15]} 26. Nc6 {[%emt 0:05:03]} Rxa2 {[%emt 0:01:25]} 27. h4 {[%emt 0:01:27]} h6 {[%emt 0:01:46]} 28. hxg5 {[%emt 0:00:09]} hxg5 {[%emt 0:00:01]} 29. b4 {[%emt 0:02:26]} Nh5 {[%emt 0:02:26]} 30. Ne5 {[%emt 0:04:31]} Nf4 {[%emt 0:02:33]} 31. Rd8+ {[%emt 0:02:01]} Kg7 {[%emt 0:00:02]} 32. Rd7 {[%emt 0:00:07]} Kf6 {[%emt 0:00:11]} 33. Ng4+ {[%emt 0:02:19]} Kg6 {[%emt 0:02:17]} 34. Ne5+ {[%emt 0:02:23]} Kf6 {[%emt 0:00:10]} 35. Ng4+ {[%emt 0:00:36]} Kg6 {[%emt 0:01:52]} 36. Ne5+ {[%emt 0:00:38]} Kf6 {[%emt 0:00:02]} 1/2-1/2